fUST/lending_fUST_20240518
["ID","MTS","AMOUNT","RATE_DAILY","PERIOD"]
[327291093,1715968239799,-500.0,0.00016438,2]
[327291095,1715968239808,-500.0,0.00016438,2]
[327291096,1715968239818,-500.0,0.00016438,2]
[327291098,1715968239828,-500.0,0.00016438,2]
[327291099,1715968239837,-500.0,0.00016438,2]
[327291101,1715968239847,-500.0,0.00016438,2]
[327291103,1715968239856,-505.32131072,0.00016438,2]
[327291105,1715968239865,-500.0,0.00016438,2]
[327291107,1715968239875,-208.42690763,0.00016438,2]
[327291109,1715968239885,-500.0,0.00016438,2]
[327291111,1715968239895,-500.0,0.00016438,2]
[327291113,1715968239904,-500.0,0.00016438,2]
[327291115,1715968239914,-500.0,0.00016438,2]
[327291117,1715968239923,-500.0,0.00016438,2]
[327291119,1715968239933,-500.0,0.00016438,2]
[327291121,1715968239942,-500.0,0.00016438,2]
[327291123,1715968239951,-500.0,0.00016438,2]
[327291125,1715968239961,-500.0,0.00016438,2]
[327291127,1715968239970,-500.0,0.00016438,2]
[327291129,1715968239979,-220.39546174,0.00016438,2]
[327291131,1715968239989,-501.78677475,0.00016438,2]
[327291133,1715968239998,-630.33823224,0.00016438,2]
[327291135,1715968240008,-500.0,0.00016438,2]
[327291137,1715968240017,-500.0,0.00016438,2]
[327291139,1715968240026,-500.0,0.00016438,2]
[327291141,1715968240036,-500.0,0.00016438,2]
[327291143,1715968240046,-500.0,0.00016438,2]
[327291145,1715968240055,-500.0,0.00016438,2]
[327291147,1715968240064,-500.0,0.00016438,2]
[327291149,1715968240074,-500.0,0.00016438,2]
[327291151,1715968240083,-500.0,0.00016438,2]
[327291154,1715968240092,-500.0,0.00016438,2]
[327291157,1715968240104,-500.0,0.00016438,2]
[327291159,1715968240114,-500.0,0.00016438,2]
[327291162,1715968240123,-500.0,0.00016438,2]
[327291165,1715968240132,-500.0,0.00016438,2]
[327291167,1715968240144,-500.0,0.00016438,2]
[327291171,1715968240153,-502.55962726,0.00016438,2]
[327291174,1715968240163,-500.0,0.00016438,2]
[327291177,1715968240172,-500.0,0.00016438,2]
[327291179,1715968240184,-360.4997949,0.00016438,2]
[327291182,1715968240195,-500.0,0.00016438,2]
[327291186,1715968240206,-153.49150854,0.00016438,2]
[327291188,1715968240216,-500.0,0.00016438,2]
[327291190,1715968240226,-500.0,0.00016438,2]
[327291192,1715968240236,-500.0,0.00016438,2]
[327291195,1715968240246,-500.0,0.00016438,2]
[327291197,1715968240256,-1000.0,0.00016438,2]
[327291203,1715968240265,-500.0,0.00016438,2]
[327291206,1715968240275,-500.0,0.00016438,2]
[327291210,1715968240285,-500.0,0.00016438,2]
[327291214,1715968240295,-294.30194895,0.00016438,2]
[327291216,1715968240305,-500.0,0.00016438,2]
[327291219,1715968240315,-500.0,0.00016438,2]
[327291222,1715968240325,-500.0,0.00016438,2]
[327291225,1715968240334,-500.0,0.00016438,2]
[327291228,1715968240344,-500.0,0.00016438,2]
[327291231,1715968240353,-500.0,0.00016438,2]
[327291233,1715968240362,-500.0,0.00016438,2]
[327291236,1715968240371,-500.0,0.00016438,2]
[327291239,1715968240381,-500.0,0.00016438,2]
[327291242,1715968240390,-500.0,0.00016438,4]
[327291245,1715968240399,-500.0,0.00016438,2]
[327291248,1715968240408,-500.0,0.00016438,2]
[327291251,1715968240418,-500.0,0.00016438,2]
[327291254,1715968240428,-500.0,0.00016438,2]
[327291257,1715968240438,-312.72951874,0.00016438,2]
[327291259,1715968240447,-500.0,0.00016438,2]
[327291261,1715968240457,-500.0,0.00016438,2]
[327291263,1715968240467,-500.0,0.00016438,2]
[327291265,1715968240477,-502.29771368,0.00016438,2]
[327291267,1715968240486,-500.0,0.00016438,2]
[327291269,1715968240496,-263.2975575,0.00016438,2]
[327291271,1715968240506,-563.83042221,0.00016438,2]
[327291273,1715968240515,-500.0,0.00016438,2]
[327291275,1715968240524,-506.49840294,0.00016438,2]
[327291277,1715968240534,-500.0,0.00016438,2]
[327291279,1715968240543,-500.0,0.00016438,2]
[327291281,1715968240552,-500.0,0.00016438,2]
[327291283,1715968240562,-500.0,0.00016438,2]
[327291285,1715968240571,-500.0,0.00016438,2]
[327291286,1715968240580,-500.0,0.00016438,2]
[327291288,1715968240590,-500.0,0.00016438,2]
[327291290,1715968240599,-500.0,0.00016438,2]
[327291292,1715968240608,-563.44,0.00016438,2]
[327291294,1715968240617,-500.0,0.00016438,2]
[327291296,1715968240626,-500.0,0.00016438,2]
[327291298,1715968240635,-500.0,0.00016438,2]
[327291300,1715968240645,-500.0,0.00016438,2]
[327291302,1715968240654,-531.34110359,0.00016438,2]
[327291304,1715968240663,-500.0,0.00016438,2]
[327291306,1715968240672,-500.0,0.00016438,2]
[327291308,1715968240683,-276.76158885,0.00016438,2]
[327291310,1715968240692,-619.94628701,0.00016438,2]
[327291312,1715968240702,-500.0,0.00016438,2]
[327291314,1715968240711,-500.0,0.00016438,2]
[327291315,1715968240720,-500.0,0.00016438,2]
[327291317,1715968240729,-500.0,0.00016438,2]
[327291319,1715968240739,-511.18308324,0.00016438,2]
[327291321,1715968240748,-500.0,0.00016438,2]
[327291323,1715968240758,-506.42610505,0.00016438,2]
[327291325,1715968240767,-500.0,0.00016438,2]
[327291327,1715968240776,-500.0,0.00016438,2]
[327291329,1715968240787,-1000.0,0.00016438,2]
[327291331,1715968240796,-515.39551987,0.00016438,2]
[327291333,1715968240805,-503.02130566,0.00016438,2]
[327291335,1715968240814,-500.0,0.00016438,2]
[327291337,1715968240823,-500.0,0.00016438,2]
[327291339,1715968240833,-500.66826848,0.00016438,2]
[327291341,1715968240841,-500.56346249,0.00016438,2]
[327291343,1715968240850,-500.0,0.00016438,2]
[327291345,1715968240860,-500.0,0.00016438,2]
[327291347,1715968240869,-500.0,0.00016438,2]
[327291349,1715968240878,-500.0,0.00016438,2]
[327291351,1715968240888,-500.0,0.00016438,2]
[327291353,1715968240897,-500.0,0.00016438,2]
[327291355,1715968240906,-505.14416001,0.00016438,2]
[327291357,1715968240916,-601.63243183,0.00016438,2]
[327291359,1715968240928,-521.25921931,0.00016438,2]
[327291361,1715968240938,-500.0,0.00016438,2]
[327291363,1715968240947,-504.61244209,0.00016438,2]
[327291365,1715968240956,-514.1380679,0.00016438,2]
[327291367,1715968240964,-600.0,0.00016438,2]
[327291369,1715968240973,-500.0,0.00016438,2]
[327291371,1715968240983,-500.0,0.00016438,2]
[327291373,1715968240992,-500.0,0.00016438,2]
[327291375,1715968241001,-501.86185944,0.00016438,2]
[327291377,1715968241010,-500.0,0.00016438,2]
[327291379,1715968241020,-500.0,0.00016438,2]
[327291380,1715968241029,-503.55423237,0.00016438,2]
[327291382,1715968241038,-504.96722018,0.00016438,2]
[327291384,1715968241047,-511.10521844,0.00016438,2]
[327291386,1715968241057,-501.37931915,0.00016438,2]
[327291388,1715968241067,-500.0,0.00016438,2]
[327291390,1715968241076,-303.8,0.00016438,2]
[327291393,1715968241086,-500.0,0.00016438,2]
[327291394,1715968241097,-500.90709511,0.00016438,2]
[327291397,1715968241112,-504.4740575,0.00016438,2]
[327291398,1715968241122,-315.08786585,0.00016438,2]
[327291400,1715968241131,-564.9621803,0.00016438,2]
[327291402,1715968241141,-500.0,0.00016438,2]
[327291404,1715968241151,-501.44891104,0.00016438,2]
[327291407,1715968241160,-500.0,0.00016438,2]
[327291408,1715968241170,-500.0,0.00016438,2]
[327291410,1715968241182,-501.92349467,0.00016438,2]
[327291413,1715968241191,-501.04937002,0.00016438,2]
[327291414,1715968241201,-500.0,0.00016438,2]
[327291416,1715968241210,-466.43373108,0.00016438,2]
[327291418,1715968241219,-550.73,0.00016438,2]
[327291420,1715968241228,-601.83666588,0.00016438,2]
[327291422,1715968241237,-500.0,0.00016438,2]
[327291424,1715968241246,-500.0,0.00016438,2]
[327291426,1715968241256,-500.0,0.00016438,2]
[327291428,1715968241265,-504.05135714,0.00016438,2]
[327291430,1715968241275,-500.0,0.00016438,2]
[327291432,1715968241284,-500.0,0.00016438,2]
[327291434,1715968241293,-416.31022307,0.00016438,2]
[327291436,1715968241303,-500.0,0.00016438,2]
[327291438,1715968241312,-531.82153831,0.00016438,2]
[327291440,1715968241322,-500.0,0.00016438,2]
[327291442,1715968241331,-500.0,0.00016438,2]
[327291444,1715968241340,-500.0,0.00016438,2]
[327291446,1715968241349,-500.0,0.00016438,2]
[327291448,1715968241359,-569.65179403,0.00016438,2]
[327291450,1715968241368,-500.0,0.00016438,2]
[327291452,1715968241377,-502.20593887,0.00016438,2]
[327291454,1715968241386,-500.0,0.00016438,2]
[327291456,1715968241395,-500.0,0.00016438,2]
[327291458,1715968241404,-501.06667719,0.00016438,2]
[327291460,1715968241413,-502.06905261,0.00016438,2]
[327291462,1715968241423,-505.83413611,0.00016438,2]
[327291464,1715968241434,-500.0,0.00016438,2]
[327291466,1715968241443,-500.0,0.00016438,2]
[327291468,1715968241453,-502.52218532,0.00016438,2]
[327291470,1715968241462,-500.94154903,0.00016438,2]
[327291472,1715968241472,-500.0,0.00016438,2]
[327291474,1715968241481,-500.0,0.00016438,2]
[327291476,1715968241490,-500.0,0.00016438,2]
[327291477,1715968241499,-500.0,0.00016438,2]
[327291479,1715968241508,-500.79962334,0.00016438,2]
[327291481,1715968241518,-500.0,0.00016438,2]
[327291483,1715968241528,-500.90492189,0.00016438,2]
[327291485,1715968241538,-500.0,0.00016438,2]
[327291487,1715968241547,-500.0,0.00016438,2]
[327291490,1715968241556,-500.0,0.00016438,2]
[327291491,1715968241565,-500.0,0.00016438,2]
[327291493,1715968241575,-500.0,0.00016438,2]
[327291496,1715968241584,-500.0,0.00016438,2]
[327291498,1715968241593,-500.0,0.00016438,2]
[327291499,1715968241603,-268.35997529,0.00016438,2]
[327291500,1715968241612,-500.9333789,0.00016438,2]
[327291501,1715968241621,-500.0,0.00016438,2]
[327291502,1715968241630,-500.0,0.00016438,2]
[327291503,1715968241638,-500.0,0.00016438,2]
[327291504,1715968241647,-590.46227602,0.00016438,2]
[327291505,1715968241656,-500.0,0.00016438,2]
[327291506,1715968241664,-500.0,0.00016438,2]
[327291507,1715968241673,-502.09119767,0.00016438,2]
[327291508,1715968241683,-626.28,0.00016438,2]
[327291509,1715968241692,-500.0,0.00016438,2]
[327291510,1715968241701,-500.90975211,0.00016438,2]
[327291511,1715968241710,-500.0,0.00016438,2]
[327291512,1715968241718,-500.0,0.00016438,2]
[327291513,1715968241728,-193.55,0.00016438,2]
[327291514,1715968241737,-500.0,0.00016438,2]
[327291515,1715968241746,-500.0,0.00016438,2]
[327291516,1715968241755,-500.0,0.00016438,2]
[327291517,1715968241764,-500.0,0.00016438,2]
[327291518,1715968241773,-500.0,0.00016438,2]
[327291519,1715968241782,-500.0,0.00016438,2]
[327291520,1715968241791,-500.0,0.00016438,2]
[327291521,1715968241799,-500.0,0.00016438,2]
[327291522,1715968241809,-500.0,0.00016438,2]
[327291523,1715968241818,-500.0,0.00016438,2]
[327291524,1715968241827,-500.0,0.00016438,2]
[327291525,1715968241836,-500.0,0.00016438,2]
[327291526,1715968241844,-500.0,0.00016438,2]
[327291527,1715968241853,-247.51575734,0.00016438,2]
[327291528,1715968241862,-246.07250585,0.00016438,2]
[327291529,1715968241871,-500.0,0.00016438,2]
[327291531,1715968241879,-502.83411061,0.00016438,2]
[327291532,1715968241889,-500.0,0.00016438,2]
[327291534,1715968241898,-500.0,0.00016438,2]
[327291536,1715968241907,-502.35738942,0.00016438,2]
[327291538,1715968241916,-519.7779062,0.00016438,2]
[327291540,1715968241926,-500.0,0.00016438,2]
[327291542,1715968241936,-500.0,0.00016438,2]
[327291544,1715968241945,-500.0,0.00016438,2]
[327291546,1715968241954,-500.0,0.00016438,2]
[327291548,1715968241964,-500.0,0.00016438,2]
[327291550,1715968241973,-500.0,0.00016438,2]
[327291552,1715968241982,-502.39628546,0.00016438,2]
[327291554,1715968241991,-501.3802005,0.00016438,2]
[327291556,1715968242000,-500.0,0.00016438,2]
[327291558,1715968242010,-500.0,0.00016438,2]
[327291560,1715968242019,-501.58210145,0.00016438,2]
[327291562,1715968242028,-500.0,0.00016438,2]
[327291564,1715968242037,-1211.04,0.00016438,2]
[327291566,1715968242047,-500.0,0.00016438,2]
[327291568,1715968242058,-500.69953264,0.00016438,2]
[327291570,1715968242068,-500.0,0.00016438,2]
[327291572,1715968242077,-500.0,0.00016438,2]
[327291574,1715968242086,-500.0,0.00016438,2]
[327291576,1715968242098,-500.0,0.00016438,2]
[327291578,1715968242111,-500.0,0.00016438,2]
[327291581,1715968242123,-500.0,0.00016438,2]
[327291582,1715968242133,-158.21638616,0.00016438,2]
[327291584,1715968242143,-500.0,0.00016438,2]
[327291588,1715968242163,-501.63264309,0.00016438,2]
[327291590,1715968242174,-500.0,0.00016438,2]
[327291592,1715968242185,-500.0,0.00016438,2]
[327291594,1715968242194,-500.85326757,0.00016438,2]
[327291596,1715968242204,-500.47322055,0.00016438,2]
[327291598,1715968242213,-500.0,0.00016438,2]
[327291600,1715968242223,-500.0,0.00016438,2]
[327291602,1715968242233,-500.0,0.00016438,2]
[327291604,1715968242242,-500.0,0.00016438,2]
[327291606,1715968242252,-501.74924601,0.00016438,2]
[327291608,1715968242261,-500.0,0.00016438,2]
[327291610,1715968242271,-501.78493775,0.00016438,2]
[327291612,1715968242281,-501.37872881,0.00016438,2]
[327291614,1715968242290,-500.0,0.00016438,2]
[327291616,1715968242300,-514.84409514,0.00016438,2]
[327291618,1715968242310,-500.0,0.00016438,2]
[327291620,1715968242319,-506.26013588,0.00016438,2]
[327291622,1715968242328,-501.10201678,0.00016438,2]
[327291624,1715968242337,-500.0,0.00016438,2]
[327291626,1715968242347,-500.0,0.00016438,2]
[327291628,1715968242358,-502.33216634,0.00016438,2]
[327291630,1715968242368,-502.10477674,0.00016438,2]
[327291632,1715968242377,-500.0,0.00016438,2]
[327291634,1715968242386,-500.0,0.00016438,2]
[327291636,1715968242396,-500.0,0.00016438,2]
[327291638,1715968242405,-500.0,0.00016438,2]
[327291640,1715968242415,-151.0,0.00016438,2]
[327291642,1715968242424,-500.0,0.00016438,2]
[327291644,1715968242436,-500.0,0.00016438,2]
[327291646,1715968242447,-206.75056341,0.00016438,2]
[327291648,1715968242456,-500.0,0.00016438,2]
[327291650,1715968242466,-501.84372558,0.00016438,2]
[327291652,1715968242475,-500.0,0.00016438,2]
[327291654,1715968242485,-500.0,0.00016438,2]
[327291656,1715968242494,-500.0,0.00016438,2]
[327291658,1715968242504,-500.0,0.00016438,2]
[327291660,1715968242514,-500.0,0.00016438,2]
[327291662,1715968242523,-500.0,0.00016438,2]
[327291664,1715968242532,-500.0,0.00016438,2]
[327291666,1715968242542,-604.63,0.00016438,2]
[327291668,1715968242551,-1680.98,0.00016438,2]
[327291670,1715968242561,-187.91517803,0.00016438,2]
[327291672,1715968242570,-526.48,0.00016438,2]
[327291674,1715968242579,-500.0,0.00016438,2]
[327291676,1715968242588,-170.98823797,0.00016438,2]
[327291678,1715968242598,-500.0,0.00016438,2]
[327291680,1715968242607,-500.0,0.00016438,2]
[327291682,1715968242616,-505.89911409,0.00016438,2]
[327291684,1715968242626,-500.0,0.00016438,2]
[327291685,1715968242635,-503.23549711,0.00016438,2]
[327291686,1715968242796,-500.0,0.00016438,2]
[327291687,1715968242805,-501.4775317,0.00016438,2]
[327291688,1715968242814,-500.0,0.00016438,2]
[327291689,1715968242823,-500.0,0.00016438,2]
[327291690,1715968242833,-500.0,0.00016438,2]
[327291691,1715968242842,-503.48828583,0.00016438,2]
[327291692,1715968242851,-500.0,0.00016438,2]
[327291694,1715968242860,-506.37290017,0.00016438,2]
[327291696,1715968242869,-501.42812798,0.00016438,2]
[327291698,1715968242878,-500.0,0.00016438,2]
[327291700,1715968242887,-500.0,0.00016438,2]
[327291702,1715968242896,-500.0,0.00016438,2]
[327291704,1715968242905,-500.0,0.00016438,2]
[327291706,1715968242915,-500.0,0.00016438,2]
[327291708,1715968242924,-500.0,0.00016438,2]
[327291710,1715968242935,-500.0,0.00016438,2]
[327291712,1715968242944,-157.50948132,0.00016438,2]
[327291714,1715968242953,-622.72419462,0.00016438,2]
[327291716,1715968242963,-500.0,0.00016438,2]
[327291718,1715968242973,-500.0,0.00016438,2]
[327291720,1715968242982,-500.0,0.00016438,2]
[327291722,1715968242991,-500.0,0.00016438,2]
[327291724,1715968243000,-500.0,0.00016438,2]
[327291726,1715968243009,-500.0,0.00016438,2]
[327291728,1715968243018,-500.0,0.00016438,2]
[327291730,1715968243027,-500.0,0.00016438,2]
[327291732,1715968243037,-500.0,0.00016438,2]
[327291734,1715968243046,-503.24770471,0.00016438,2]
[327291736,1715968243056,-500.0,0.00016438,2]
[327291738,1715968243065,-500.0,0.00016438,2]
[327291740,1715968243075,-500.0,0.00016438,2]
[327291742,1715968243084,-500.0,0.00016438,2]
[327291744,1715968243093,-500.0,0.00016438,2]
[327291746,1715968243106,-537.93709329,0.00016438,2]
[327291748,1715968243115,-500.0,0.00016438,2]
[327291750,1715968243124,-1565.19,0.00016438,2]
[327291752,1715968243134,-500.0,0.00016438,2]
[327291754,1715968243145,-163.6299445,0.00016438,2]
[327291756,1715968243154,-500.0,0.00016438,2]
[327291758,1715968243163,-500.0,0.00016438,2]
[327291760,1715968243172,-500.0,0.00016438,2]
[327291762,1715968243183,-500.0,0.00016438,2]
[327291765,1715968243192,-500.0,0.00016438,2]
[327291768,1715968243202,-500.0,0.00016438,2]
[327291771,1715968243211,-500.0,0.00016438,2]
[327291772,1715968243219,-500.0,0.00016438,2]
[327291775,1715968243229,-500.0,0.00016438,2]
[327291778,1715968243238,-500.0,0.00016438,2]
[327291781,1715968243247,-500.0,0.00016438,2]
[327291785,1715968243256,-500.0,0.00016438,2]
[327291787,1715968243266,-500.0,0.00016438,2]
[327291789,1715968243275,-501.85975324,0.00016438,2]
[327291791,1715968243285,-1000.0,0.00016438,2]
[327291794,1715968243293,-500.0,0.00016438,2]
[327291797,1715968243303,-500.0,0.00016438,2]
[327291800,1715968243313,-274.09997115,0.000165,2]
[327291802,1715968243323,-12703.0,0.000165,2]
[327291804,1715968243332,-500.0,0.00016711,2]
[327291806,1715968243341,-500.0,0.00016711,2]
[327291808,1715968243351,-333.89884817,0.00016712,2]
[327291810,1715968243361,-500.0,0.00016712,2]
[327291812,1715968243371,-500.0,0.00016712,2]
[327291814,1715968243381,-500.0,0.00016712,2]
[327291816,1715968243390,-501.97497745,0.00016712,2]
[327291818,1715968243400,-500.0,0.00016712,2]
[327291820,1715968243409,-299.6376765,0.00016712,2]
[327291822,1715968243418,-500.0,0.00016712,2]
[327291824,1715968243429,-500.0,0.00016712,2]
[327291826,1715968243438,-500.0,0.00016712,2]
[327291829,1715968243450,-500.0,0.00016712,2]
[327291831,1715968243460,-500.0,0.00016712,2]
[327291833,1715968243469,-500.0,0.00016712,2]
[327291834,1715968243478,-500.0,0.00016712,2]
[327291836,1715968243487,-500.0,0.00016712,2]
[327291838,1715968243497,-504.44651926,0.00016712,2]
[327291840,1715968243506,-500.0,0.00016712,2]
[327291842,1715968243515,-500.0,0.00016712,2]
[327291844,1715968243525,-572.20448515,0.00016712,2]
[327291847,1715968243535,-500.0,0.00016712,2]
[327291848,1715968243544,-500.0,0.00016712,2]
[327291850,1715968243554,-611.28564328,0.00016712,2]
[327291852,1715968243563,-500.0,0.00016712,2]
[327291854,1715968243572,-500.0,0.00016712,2]
[327291856,1715968243582,-500.0,0.00016712,2]
[327291858,1715968243591,-500.0,0.00016712,2]
[327291860,1715968243600,-500.0,0.00016712,2]
[327291862,1715968243609,-500.0,0.00016712,2]
[327291864,1715968243618,-580.71380293,0.00016712,2]
[327291866,1715968243628,-500.0,0.00016712,2]
[327291868,1715968243637,-500.0,0.00016712,2]
[327291870,1715968243647,-348.90967529,0.00016712,2]
[327291872,1715968243657,-500.0,0.00016712,2]
[327291874,1715968243666,-500.0,0.00016712,2]
[327291876,1715968243675,-500.0,0.00016712,2]
[327291878,1715968243687,-500.0,0.00016712,2]
[327291880,1715968243697,-500.0,0.00016712,2]
[327291882,1715968243706,-500.0,0.00016712,2]
[327291884,1715968243716,-326.71865522,0.00016712,2]
[327291886,1715968243726,-500.0,0.00016712,2]
[327291888,1715968243735,-500.0,0.00016712,2]
[327291890,1715968243744,-500.0,0.00016712,2]
[327291892,1715968243753,-500.0,0.00016712,2]
[327291894,1715968243763,-500.0,0.00016712,4]
[327291896,1715968243772,-500.0,0.00016712,2]
[327291898,1715968243782,-500.0,0.00016712,2]
[327291900,1715968243791,-500.0,0.00016712,2]
[327291902,1715968243803,-500.0,0.00016712,2]
[327291905,1715968243812,-170.0,0.00016712,2]
[327291906,1715968243821,-500.0,0.00016712,2]
[327291908,1715968243831,-500.0,0.00016712,2]
[327291910,1715968243840,-500.0,0.00016712,2]
[327291912,1715968243849,-500.0,0.00016712,2]
[327291915,1715968243859,-217.98,0.00016712,2]
[327291917,1715968243868,-500.0,0.00016712,2]
[327291918,1715968243877,-500.0,0.00016712,2]
[327291920,1715968243886,-500.0,0.00016712,2]
[327291922,1715968243896,-500.0,0.00016712,2]
[327291924,1715968243906,-500.0,0.00016712,2]
[327291926,1715968243915,-1001.47319909,0.00016712,2]
[327291928,1715968243924,-500.0,0.00016712,2]
[327291930,1715968243936,-500.0,0.00016712,2]
[327291932,1715968243945,-502.60247315,0.00016712,2]
[327291934,1715968243954,-620.15,0.00016712,2]
[327291936,1715968243963,-531.25128795,0.00016712,2]
[327291938,1715968243973,-500.0,0.00016712,2]
[327291940,1715968243983,-500.0,0.00016712,2]
[327291942,1715968243992,-227.21197337,0.00016712,2]
[327291944,1715968244001,-500.0,0.00016712,2]
[327291947,1715968244011,-589.36,0.00016712,2]
[327291949,1715968244020,-500.0,0.00016712,2]
[327291950,1715968244029,-500.0,0.00016712,2]
[327291952,1715968244039,-500.0,0.00016712,2]
[327291954,1715968244048,-500.0,0.00016712,2]
[327291956,1715968244057,-500.0,0.00016712,2]
[327291958,1715968244067,-500.0,0.00016712,2]
[327291960,1715968244076,-500.0,0.00016712,2]
[327291963,1715968244085,-500.0,0.00016712,2]
[327291964,1715968244096,-500.0,0.00016712,2]
[327291966,1715968244108,-624.44,0.00016712,2]
[327291968,1715968244116,-500.0,0.00016712,2]
[327291970,1715968244125,-500.0,0.00016712,2]
[327291972,1715968244135,-607.26,0.00016712,2]
[327291974,1715968244147,-500.0,0.00016712,2]
[327291977,1715968244156,-500.0,0.00016712,2]
[327291979,1715968244166,-500.0,0.00016712,2]
[327291980,1715968244175,-1211.04,0.00016712,2]
[327291982,1715968244185,-500.0,0.00016712,2]
[327291983,1715968244194,-500.0,0.00016712,2]
[327291984,1715968244203,-500.0,0.00016712,2]
[327291985,1715968244213,-575.53,0.00016712,2]
[327291986,1715968244222,-500.0,0.00016712,2]
[327291987,1715968244231,-591.29285216,0.00016712,2]
[327291988,1715968244240,-500.0,0.00016712,2]
[327291990,1715968244249,-500.0,0.00016712,2]
[327291992,1715968244259,-500.0,0.00016712,2]
[327291994,1715968244268,-500.0,0.00016712,2]
[327291996,1715968244278,-1680.98,0.00016712,2]
[327291997,1715968244287,-526.48,0.00016712,2]
[327291998,1715968244296,-500.0,0.00016712,2]
[327292000,1715968244305,-500.0,0.00016712,2]
[327292001,1715968244315,-500.0,0.00016712,2]
[327292002,1715968244324,-500.0,0.00016712,2]
[327292003,1715968244333,-500.0,0.00016712,2]
[327292004,1715968244343,-500.0,0.00016712,2]
[327292006,1715968244352,-500.0,0.00016712,2]
[327292008,1715968244361,-500.0,0.00016712,2]
[327292009,1715968244371,-500.0,0.00016712,2]
[327292010,1715968244380,-297.23,0.00016712,2]
[327292011,1715968244390,-500.0,0.00016712,2]
[327292012,1715968244399,-500.0,0.00016712,2]
[327292013,1715968244408,-272.64,0.00016712,2]
[327292015,1715968244417,-500.0,0.00016712,2]
[327292017,1715968244426,-500.0,0.00016712,2]
[327292019,1715968244437,-500.0,0.00016712,2]
[327292021,1715968244446,-420.27,0.00016712,2]
[327292023,1715968244455,-500.0,0.00016712,2]
[327292025,1715968244465,-1565.19,0.00016712,2]
[327292027,1715968244475,-602.2888841,0.00016712,2]
[327292028,1715968244484,-500.0,0.00016712,2]
[327292029,1715968244493,-485.99,0.00016712,2]
[327292030,1715968244502,-231.21454636,0.00016712,2]
[327292031,1715968244512,-502.22486288,0.00016712,2]
[327292032,1715968244522,-500.0,0.00016712,2]
[327292033,1715968244531,-500.0,0.00016712,2]
[327292034,1715968244541,-500.0,0.00016712,2]
[327292035,1715968244549,-511.39857816,0.00016712,2]
[327292036,1715968244559,-500.0,0.00016712,2]
[327292037,1715968244569,-500.0,0.00016712,2]
[327292038,1715968244578,-500.0,0.00016712,2]
[327292039,1715968244588,-500.0,0.00016712,2]
[327292040,1715968244597,-534.09975849,0.00016986,2]
[327292041,1715968244607,-611.27,0.00016986,2]
[327292042,1715968244616,-600.05914449,0.00016986,2]
[327292043,1715968244626,-500.0,0.00016986,2]
[327292044,1715968244635,-500.0,0.00016986,2]
[327292045,1715968244644,-586.43584108,0.00016986,2]
[327292046,1715968244653,-500.0,0.00016986,2]
[327292047,1715968244662,-500.0,0.00016986,2]
[327292048,1715968244672,-500.0,0.00016986,2]
[327292049,1715968244682,-166.6,0.00016986,2]
[327292050,1715968244691,-500.0,0.00016986,2]
[327292051,1715968244701,-500.0,0.00016986,2]